[Event "Late-Titled-Tuesday-Blitz-July-09-2024"]
[Site "Chess.com"]
[Date "2024.07.09"]
[Round "5"]
[White "alexrustemov"]
[Black "Msb2"]
[Result "0-1"]
[WhiteElo "2876"]
[BlackElo "3087"]
[TimeControl "180+1"]
[EndTime "14:55:26 PDT"]
[Termination "Msb2 won by checkmate"]

1. d4 {[%clk 0:03:00.9]} 1... d5 {[%clk 0:03:00.2]} 2. c4 {[%clk 0:03:01]} 2...
e6 {[%clk 0:03:00.7]} 3. Nf3 {[%clk 0:03:00.7]} 3... Nf6 {[%clk 0:03:01.1]} 4.
cxd5 {[%clk 0:02:59.7]} 4... exd5 {[%clk 0:03:02]} 5. Bg5 {[%clk 0:02:58.4]}
5... h6 {[%clk 0:03:01.8]} 6. Bh4 {[%clk 0:02:53.6]} 6... Bb4+ {[%clk
0:03:01.5]} 7. Nfd2 {[%clk 0:02:44.1]} 7... O-O {[%clk 0:02:58.3]} 8. a3 {[%clk
0:02:41.8]} 8... Be7 {[%clk 0:02:57.5]} 9. e3 {[%clk 0:02:41.3]} 9... Bf5 {[%clk
0:02:53.6]} 10. Nc3 {[%clk 0:02:39.8]} 10... c6 {[%clk 0:02:54]} 11. Nf3 {[%clk
0:02:35.7]} 11... Nbd7 {[%clk 0:02:54.1]} 12. Bd3 {[%clk 0:02:34.9]} 12... Bxd3
{[%clk 0:02:54.4]} 13. Qxd3 {[%clk 0:02:35.6]} 13... Re8 {[%clk 0:02:55.1]} 14.
Nd2 {[%clk 0:02:28]} 14... Nf8 {[%clk 0:02:50.3]} 15. O-O {[%clk 0:02:27.5]}
15... Ng6 {[%clk 0:02:49.6]} 16. Bxf6 {[%clk 0:02:25.9]} 16... Bxf6 {[%clk
0:02:50.5]} 17. b4 {[%clk 0:02:24.1]} 17... a6 {[%clk 0:02:50.2]} 18. a4 {[%clk
0:02:23.8]} 18... Qd6 {[%clk 0:02:46.7]} 19. b5 {[%clk 0:02:22.6]} 19... cxb5
{[%clk 0:02:46.7]} 20. axb5 {[%clk 0:02:22.5]} 20... a5 {[%clk 0:02:47.6]} 21.
Rfc1 {[%clk 0:02:12]} 21... Rec8 {[%clk 0:02:44.8]} 22. g3 {[%clk 0:02:06.1]}
22... Nf8 {[%clk 0:02:36.9]} 23. Qf5 {[%clk 0:01:58.4]} 23... Rd8 {[%clk
0:02:36.3]} 24. Na4 {[%clk 0:01:49.3]} 24... Nd7 {[%clk 0:02:34.8]} 25. Nf3
{[%clk 0:01:42.6]} 25... Nb6 {[%clk 0:02:29.4]} 26. Nc5 {[%clk 0:01:41.6]} 26...
Qe7 {[%clk 0:02:29.7]} 27. Nd2 {[%clk 0:01:37.4]} 27... g6 {[%clk 0:02:25.9]}
28. Qd3 {[%clk 0:01:36.2]} 28... Kg7 {[%clk 0:02:26.4]} 29. Ra2 {[%clk
0:01:34.4]} 29... Ra7 {[%clk 0:02:03.1]} 30. Rca1 {[%clk 0:01:34.2]} 30... Rda8
{[%clk 0:02:03.1]} 31. Kg2 {[%clk 0:01:34.5]} 31... Nd7 {[%clk 0:02:01.6]} 32.
Ndb3 {[%clk 0:01:28.2]} 32... Nxc5 {[%clk 0:02:00.2]} 33. Nxc5 {[%clk
0:01:27.9]} 33... b6 {[%clk 0:02:00.6]} 34. Na4 {[%clk 0:01:27.3]} 34... Rb8
{[%clk 0:01:59.4]} 35. Rc1 {[%clk 0:01:26.1]} 35... Rc7 {[%clk 0:01:59.5]} 36.
Rac2 {[%clk 0:01:24.1]} 36... Rxc2 {[%clk 0:01:59]} 37. Qxc2 {[%clk 0:01:22.1]}
37... h5 {[%clk 0:01:43.9]} 38. h4 {[%clk 0:01:21.8]} 38... Qe8 {[%clk
0:01:39.8]} 39. Qc6 {[%clk 0:01:21]} 39... Qe4+ {[%clk 0:01:39.9]} 40. Kg1
{[%clk 0:01:20.6]} 40... g5 {[%clk 0:01:36.2]} 41. hxg5 {[%clk 0:01:19.3]} 41...
Bxg5 {[%clk 0:01:37.1]} 42. Nxb6 {[%clk 0:01:19.3]} 42... Bxe3 {[%clk
0:01:28.1]} 43. fxe3 {[%clk 0:00:52.7]} 43... Qxe3+ {[%clk 0:01:29]} 44. Kg2
{[%clk 0:00:47.1]} 44... Qe2+ {[%clk 0:01:29.5]} 45. Kg1 {[%clk 0:00:45.4]}
45... Qe3+ {[%clk 0:01:25]} 46. Kg2 {[%clk 0:00:45.5]} 46... h4 {[%clk
0:00:56.6]} 47. Nxd5 {[%clk 0:00:37.2]} 47... h3+ {[%clk 0:00:56.8]} 48. Kxh3
{[%clk 0:00:23.7]} 48... Rh8+ {[%clk 0:00:56.4]} 49. Kg4 {[%clk 0:00:24.2]}
49... Qe2+ {[%clk 0:00:56.3]} 50. Kf4 {[%clk 0:00:22]} 50... Rh6 {[%clk
0:00:45.6]} 51. Qc7 {[%clk 0:00:22.1]} 51... Qf2+ {[%clk 0:00:42]} 52. Kg4
{[%clk 0:00:10.4]} 52... Rg6+ {[%clk 0:00:33.2]} 53. Kh3 {[%clk 0:00:10.6]}
53... Qf5+ {[%clk 0:00:33.9]} 54. Kh2 {[%clk 0:00:08.3]} 54... Qf2+ {[%clk
0:00:21.6]} 55. Kh3 {[%clk 0:00:08.2]} 55... Rh6+ {[%clk 0:00:20.5]} 56. Kg4
{[%clk 0:00:08.3]} 56... Qe2+ {[%clk 0:00:21.1]} 57. Kf4 {[%clk 0:00:08.2]}
57... Re6 {[%clk 0:00:21.6]} 58. Rc5 {[%clk 0:00:02.8]} 58... Qe4+ {[%clk
0:00:21.2]} 59. Kg5 {[%clk 0:00:02.7]} 59... Rg6+ {[%clk 0:00:22.1]} 60. Kh5
{[%clk 0:00:01]} 60... Qg4# {[%clk 0:00:23]} 0-1

[Event "Late-Titled-Tuesday-Blitz-July-09-2024"]
[Site "Chess.com"]
[Date "2024.07.09"]
[Round "5"]
[White "Chigorinetz"]
[Black "AradNazari"]
[Result "1-0"]
[WhiteElo "2615"]
[BlackElo "2773"]
[TimeControl "180+1"]
[EndTime "14:55:30 PDT"]
[Termination "Chigorinetz won by checkmate"]

1. e4 {[%clk 0:03:00.9]} 1... c5 {[%clk 0:02:48.8]} 2. Nc3 {[%clk 0:02:59.9]}
2... d6 {[%clk 0:02:47.6]} 3. Nf3 {[%clk 0:02:58.5]} 3... Nf6 {[%clk 0:02:46.8]}
4. e5 {[%clk 0:02:58.5]} 4... dxe5 {[%clk 0:02:46.2]} 5. Nxe5 {[%clk 0:02:59.3]}
5... Nbd7 {[%clk 0:02:46.7]} 6. d4 {[%clk 0:02:55.9]} 6... e6 {[%clk 0:02:43.7]}
7. Bb5 {[%clk 0:02:54.6]} 7... a6 {[%clk 0:02:43.2]} 8. Bxd7+ {[%clk 0:02:53.6]}
8... Bxd7 {[%clk 0:02:43.7]} 9. O-O {[%clk 0:02:47.4]} 9... Rc8 {[%clk
0:02:34.8]} 10. d5 {[%clk 0:02:46.3]} 10... Bd6 {[%clk 0:02:30.9]} 11. Nxd7
{[%clk 0:02:38]} 11... Qxd7 {[%clk 0:02:27.4]} 12. dxe6 {[%clk 0:02:37.3]} 12...
fxe6 {[%clk 0:02:28.3]} 13. Bg5 {[%clk 0:02:28.7]} 13... Rd8 {[%clk 0:02:05]}
14. Qe2 {[%clk 0:02:20.9]} 14... O-O {[%clk 0:01:59.1]} 15. Rad1 {[%clk
0:02:18.7]} 15... Qe7 {[%clk 0:01:29.9]} 16. Rfe1 {[%clk 0:02:05.7]} 16... h6
{[%clk 0:01:18.7]} 17. Bh4 {[%clk 0:01:54.6]} 17... Rfe8 {[%clk 0:01:01.5]} 18.
Ne4 {[%clk 0:01:45.6]} 18... Be5 {[%clk 0:00:50.1]} 19. c3 {[%clk 0:01:38.7]}
19... Rxd1 {[%clk 0:00:47.6]} 20. Rxd1 {[%clk 0:01:38]} 20... g5 {[%clk
0:00:36]} 21. Bg3 {[%clk 0:01:25.8]} 21... Bxg3 {[%clk 0:00:33.1]} 22. hxg3
{[%clk 0:01:24.2]} 22... Nxe4 {[%clk 0:00:14.1]} 23. Qxe4 {[%clk 0:01:22.9]}
23... Kg7 {[%clk 0:00:06.5]} 24. a4 {[%clk 0:01:20.6]} 24... e5 {[%clk
0:00:02.5]} 25. a5 {[%clk 0:01:15.4]} 25... Qf7 {[%clk 0:00:02.7]} 26. Rd6
{[%clk 0:01:10.8]} 26... Re6 {[%clk 0:00:01.9]} 27. Rxe6 {[%clk 0:01:09.6]}
27... Qxe6 {[%clk 0:00:02.8]} 28. Qxb7+ {[%clk 0:01:09.7]} 28... Kf6 {[%clk
0:00:03.5]} 29. Kf1 {[%clk 0:00:52.7]} 29... Qc4+ {[%clk 0:00:02.9]} 30. Ke1
{[%clk 0:00:52.4]} 30... e4 {[%clk 0:00:01.7]} 31. Qd7 {[%clk 0:00:40.4]} 31...
Qb5 {[%clk 0:00:01.1]} 32. Qd6+ {[%clk 0:00:39.1]} 32... Kf5 {[%clk 0:00:01]}
33. f3 {[%clk 0:00:30.3]} 33... exf3 {[%clk 0:00:01.1]} 34. gxf3 {[%clk
0:00:29.9]} 34... g4 {[%clk 0:00:01.2]} 35. Qf4+ {[%clk 0:00:28.5]} 35... Ke6
{[%clk 0:00:01.6]} 36. Qxg4+ {[%clk 0:00:27.2]} 36... Ke7 {[%clk 0:00:02.3]} 37.
Qh4+ {[%clk 0:00:25.5]} 37... Ke8 {[%clk 0:00:02.2]} 38. Qh5+ {[%clk 0:00:25.1]}
38... Kd8 {[%clk 0:00:01.9]} 39. Qd5+ {[%clk 0:00:24.3]} 39... Kc7 {[%clk
0:00:02.6]} 40. b4 {[%clk 0:00:23.9]} 40... Qa4 {[%clk 0:00:01.1]} 41. Qxc5+
{[%clk 0:00:23.3]} 41... Kb8 {[%clk 0:00:02]} 42. Qb6+ {[%clk 0:00:23]} 42...
Ka8 {[%clk 0:00:02]} 43. Qxa6+ {[%clk 0:00:23.1]} 43... Kb8 {[%clk 0:00:02.9]}
44. Qb6+ {[%clk 0:00:23.3]} 44... Ka8 {[%clk 0:00:03.5]} 45. Qd4 {[%clk
0:00:23.7]} 45... Qa1+ {[%clk 0:00:03.6]} 46. Ke2 {[%clk 0:00:23.3]} 46... Qb2+
{[%clk 0:00:04.3]} 47. Ke3 {[%clk 0:00:23.3]} 47... Qc1+ {[%clk 0:00:04.8]} 48.
Ke4 {[%clk 0:00:23.4]} 48... Qc2+ {[%clk 0:00:05.3]} 49. Ke5 {[%clk 0:00:21.6]}
49... Qh2 {[%clk 0:00:05.6]} 50. Qf4 {[%clk 0:00:18.3]} 50... Qh5+ {[%clk
0:00:05.8]} 51. Qf5 {[%clk 0:00:18]} 51... Qh2 {[%clk 0:00:06.5]} 52. Kd6 {[%clk
0:00:18]} 52... Qxg3+ {[%clk 0:00:05.9]} 53. Kc6 {[%clk 0:00:18.4]} 53... h5
{[%clk 0:00:06.5]} 54. Qf8+ {[%clk 0:00:18]} 54... Ka7 {[%clk 0:00:06.1]} 55.
Qf7+ {[%clk 0:00:18]} 55... Ka6 {[%clk 0:00:06.7]} 56. Qb7# {[%clk 0:00:17.9]}
1-0

[Event "Late-Titled-Tuesday-Blitz-July-09-2024"]
[Site "Chess.com"]
[Date "2024.07.09"]
[Round "5"]
[White "talaicito"]
[Black "axlbvRR"]
[Result "1-0"]
[WhiteElo "2315"]
[BlackElo "1948"]
[TimeControl "180+1"]
[EndTime "14:55:30 PDT"]
[Termination "talaicito won on time"]

1. d4 {[%clk 0:03:00.9]} 1... e6 {[%clk 0:03:00.2]} 2. e4 {[%clk 0:02:58.6]}
2... d5 {[%clk 0:03:00.1]} 3. e5 {[%clk 0:02:58.7]} 3... c5 {[%clk 0:02:59.4]}
4. c3 {[%clk 0:02:59.6]} 4... Nc6 {[%clk 0:02:59.7]} 5. Nf3 {[%clk 0:02:59.9]}
5... Bd7 {[%clk 0:02:56.1]} 6. Bd3 {[%clk 0:02:59.6]} 6... Qb6 {[%clk
0:02:54.7]} 7. O-O {[%clk 0:03:00]} 7... cxd4 {[%clk 0:02:53.9]} 8. cxd4 {[%clk
0:02:56.7]} 8... Nxd4 {[%clk 0:02:53.9]} 9. Nbd2 {[%clk 0:02:57.3]} 9... Nc6
{[%clk 0:02:46.2]} 10. Nb3 {[%clk 0:02:56.1]} 10... Nge7 {[%clk 0:02:40.6]} 11.
Be3 {[%clk 0:02:56]} 11... Qd8 {[%clk 0:02:38.8]} 12. Nc5 {[%clk 0:02:55.2]}
12... Rb8 {[%clk 0:02:28.6]} 13. Rc1 {[%clk 0:02:53]} 13... Ng6 {[%clk
0:02:27.3]} 14. Nxd7 {[%clk 0:02:19.5]} 14... Qxd7 {[%clk 0:02:25.5]} 15. Bb5
{[%clk 0:02:19.5]} 15... a6 {[%clk 0:02:15.5]} 16. Bxc6 {[%clk 0:02:19.3]} 16...
bxc6 {[%clk 0:02:15.1]} 17. Qa4 {[%clk 0:02:19.1]} 17... Ne7 {[%clk 0:02:04.1]}
18. Qxa6 {[%clk 0:02:11.3]} 18... Qb7 {[%clk 0:01:48.2]} 19. Qxb7 {[%clk
0:01:59.5]} 19... Rxb7 {[%clk 0:01:48.4]} 20. a4 {[%clk 0:02:00.1]} 20... Kd7
{[%clk 0:01:42.7]} 21. a5 {[%clk 0:01:58]} 21... Nf5 {[%clk 0:01:39.3]} 22. Bb6
{[%clk 0:01:43.8]} 22... Be7 {[%clk 0:01:28.8]} 23. g4 {[%clk 0:01:40]} 23...
Nh6 {[%clk 0:01:25.5]} 24. h3 {[%clk 0:01:34.3]} 24... f6 {[%clk 0:01:24.2]} 25.
Rc2 {[%clk 0:01:18.4]} 25... Rc8 {[%clk 0:01:20.7]} 26. Rfc1 {[%clk 0:01:16.6]}
26... Nf7 {[%clk 0:01:18]} 27. Bd4 {[%clk 0:01:00.8]} 27... Rbc7 {[%clk
0:01:06.6]} 28. Bb6 {[%clk 0:00:45.2]} 28... Rb7 {[%clk 0:01:05.6]} 29. exf6
{[%clk 0:00:40.7]} 29... gxf6 {[%clk 0:01:04.4]} 30. Nd4 {[%clk 0:00:36.9]}
30... c5 {[%clk 0:00:49.9]} 31. b4 {[%clk 0:00:36.5]} 31... c4 {[%clk
0:00:39.4]} 32. b5 {[%clk 0:00:36.8]} 32... Bc5 {[%clk 0:00:25.6]} 33. Bxc5
{[%clk 0:00:36.5]} 33... Rxc5 {[%clk 0:00:25.4]} 34. a6 {[%clk 0:00:37.2]} 34...
Rb8 {[%clk 0:00:24]} 35. a7 {[%clk 0:00:36.8]} 35... Ra8 {[%clk 0:00:22.8]} 36.
b6 {[%clk 0:00:31.3]} 36... Nd6 {[%clk 0:00:21.4]} 37. Re1 {[%clk 0:00:26.9]}
37... e5 {[%clk 0:00:20.5]} 38. Nf5 {[%clk 0:00:24.3]} 38... Nb7 {[%clk
0:00:20.3]} 39. f4 {[%clk 0:00:24.3]} 39... e4 {[%clk 0:00:19.7]} 40. Rd1 {[%clk
0:00:19.4]} 40... Ke6 {[%clk 0:00:19.6]} 41. Ne3 {[%clk 0:00:19]} 41... Rb5
{[%clk 0:00:18.9]} 42. Kf2 {[%clk 0:00:15.4]} 42... Rd8 {[%clk 0:00:16.9]} 43.
Nxc4 {[%clk 0:00:14.4]} 43... Ra8 {[%clk 0:00:14.3]} 44. Ne3 {[%clk 0:00:13.4]}
44... Rxb6 {[%clk 0:00:14.1]} 45. Nxd5 {[%clk 0:00:12.9]} 45... Rd6 {[%clk
0:00:13.7]} 46. Nc7+ {[%clk 0:00:12.6]} 46... Kd7 {[%clk 0:00:13.6]} 47. Rxd6+
{[%clk 0:00:13.1]} 47... Kxd6 {[%clk 0:00:13.8]} 48. Nxa8 {[%clk 0:00:14]} 48...
Ke6 {[%clk 0:00:13.4]} 49. Nb6 {[%clk 0:00:14.2]} 49... Nd6 {[%clk 0:00:10.7]}
50. a8=Q {[%clk 0:00:15.1]} 50... e3+ {[%clk 0:00:11.5]} 51. Kxe3 {[%clk
0:00:14.4]} 51... f5 {[%clk 0:00:11.2]} 52. gxf5+ {[%clk 0:00:13.9]} 52... Nxf5+
{[%clk 0:00:11]} 53. Kf2 {[%clk 0:00:14.8]} 53... Kf6 {[%clk 0:00:10.6]} 54. Qc8
{[%clk 0:00:15.2]} 54... Kg6 {[%clk 0:00:10.8]} 55. Rc6+ {[%clk 0:00:15.5]}
55... Kf7 {[%clk 0:00:07]} 56. Qxf5+ {[%clk 0:00:15.9]} 1-0

[Event "Late-Titled-Tuesday-Blitz-July-09-2024"]
[Site "Chess.com"]
[Date "2024.07.09"]
[Round "5"]
[White "alreadybroken23"]
[Black "KaydenTroffChess"]
[Result "0-1"]
[WhiteElo "2663"]
[BlackElo "2887"]
[TimeControl "180+1"]
[EndTime "14:55:31 PDT"]
[Termination "KaydenTroffChess won on time"]

1. d4 {[%clk 0:02:57.8]} 1... Nf6 {[%clk 0:02:58.9]} 2. c4 {[%clk 0:02:56.3]}
2... g6 {[%clk 0:02:58.8]} 3. Nc3 {[%clk 0:02:56.5]} 3... d5 {[%clk 0:02:59]} 4.
cxd5 {[%clk 0:02:56.4]} 4... Nxd5 {[%clk 0:02:59.9]} 5. e4 {[%clk 0:02:56.2]}
5... Nxc3 {[%clk 0:03:00]} 6. bxc3 {[%clk 0:02:57.1]} 6... Bg7 {[%clk
0:02:59.9]} 7. Bc4 {[%clk 0:02:56.9]} 7... c5 {[%clk 0:02:59.6]} 8. Ne2 {[%clk
0:02:57.3]} 8... O-O {[%clk 0:02:59.4]} 9. O-O {[%clk 0:02:57.3]} 9... Nc6
{[%clk 0:02:57.6]} 10. Be3 {[%clk 0:02:57.8]} 10... Bd7 {[%clk 0:02:56.9]} 11.
Rb1 {[%clk 0:02:53.5]} 11... Qc7 {[%clk 0:02:48.6]} 12. Qd2 {[%clk 0:02:49]}
12... Rfd8 {[%clk 0:02:47.9]} 13. Rfd1 {[%clk 0:02:43.7]} 13... Be8 {[%clk
0:02:46]} 14. Qb2 {[%clk 0:02:25.5]} 14... e6 {[%clk 0:02:15.4]} 15. Bf4 {[%clk
0:02:21.5]} 15... Qa5 {[%clk 0:02:09.9]} 16. Qxb7 {[%clk 0:02:13.3]} 16... Rac8
{[%clk 0:01:57.7]} 17. d5 {[%clk 0:02:04.2]} 17... exd5 {[%clk 0:01:54.2]} 18.
Bxd5 {[%clk 0:01:58.2]} 18... Ne5 {[%clk 0:01:49.7]} 19. Qb2 {[%clk 0:01:41.5]}
19... c4 {[%clk 0:01:39.7]} 20. Bxe5 {[%clk 0:01:35.8]} 20... Bxe5 {[%clk
0:01:39]} 21. a3 {[%clk 0:01:05.2]} 21... Ba4 {[%clk 0:01:32.5]} 22. Rdc1 {[%clk
0:01:00.4]} 22... Rb8 {[%clk 0:01:27.2]} 23. Qd2 {[%clk 0:00:55.9]} 23... Rxb1
{[%clk 0:01:27.1]} 24. Rxb1 {[%clk 0:00:56.8]} 24... Bc6 {[%clk 0:01:27.4]} 25.
Rd1 {[%clk 0:00:47.6]} 25... Bxd5 {[%clk 0:01:24.5]} 26. exd5 {[%clk 0:00:48.5]}
26... Qxa3 {[%clk 0:01:24.9]} 27. Qe3 {[%clk 0:00:48.5]} 27... Bf6 {[%clk
0:01:17.2]} 28. g3 {[%clk 0:00:42.8]} 28... a5 {[%clk 0:01:16]} 29. Qb6 {[%clk
0:00:42.9]} 29... Qb3 {[%clk 0:01:15.6]} 30. Rb1 {[%clk 0:00:32.5]} 30... Qc2
{[%clk 0:00:56.5]} 31. Nd4 {[%clk 0:00:20.1]} 31... Qe4 {[%clk 0:00:43.4]} 32.
Rd1 {[%clk 0:00:14.4]} 32... Kg7 {[%clk 0:00:40.7]} 33. d6 {[%clk 0:00:11.3]}
33... a4 {[%clk 0:00:37.8]} 34. Qc5 {[%clk 0:00:09.7]} 34... Qe5 {[%clk
0:00:28.8]} 35. Qxc4 {[%clk 0:00:04.9]} 35... a3 {[%clk 0:00:17]} 36. Nc6 {[%clk
0:00:02.7]} 36... Qh5 {[%clk 0:00:14.5]} 37. g4 {[%clk 0:00:02.7]} 37... Qh4
{[%clk 0:00:12]} 38. Nxd8 {[%clk 0:00:02.6]} 38... Bxd8 {[%clk 0:00:08.4]} 39.
d7 {[%clk 0:00:02.5]} 39... a2 {[%clk 0:00:07.6]} 40. Qd4+ {[%clk 0:00:01.1]}
40... Kh6 {[%clk 0:00:06.4]} 41. Kg2 {[%clk 0:00:01.7]} 41... Bc7 {[%clk
0:00:06]} 42. Qe3+ {[%clk 0:00:01.8]} 42... Kg7 {[%clk 0:00:06]} 43. Qh3 {[%clk
0:00:01.6]} 43... Qd8 {[%clk 0:00:05.6]} 44. c4 {[%clk 0:00:01.7]} 44... Qa8+
{[%clk 0:00:05.7]} 45. Qf3 {[%clk 0:00:01.7]} 45... a1=Q {[%clk 0:00:06.4]} 46.
Rxa1 {[%clk 0:00:01.4]} 46... Qxa1 {[%clk 0:00:06.6]} 47. Qc6 {[%clk 0:00:02.1]}
47... Qa5 {[%clk 0:00:06.5]} 48. c5 {[%clk 0:00:02.1]} 48... Bd8 {[%clk
0:00:06.8]} 49. Qc8 {[%clk 0:00:01.9]} 49... Qc7 {[%clk 0:00:06.9]} 50. Qxc7
{[%clk 0:00:01]} 50... Bxc7 {[%clk 0:00:07.1]} 51. Kf3 {[%clk 0:00:01]} 51...
Kf6 {[%clk 0:00:07.7]} 52. Ke4 {[%clk 0:00:01.2]} 52... Ke6 {[%clk 0:00:08.2]}
53. f4 {[%clk 0:00:01]} 53... Kxd7 {[%clk 0:00:08.2]} 54. h4 {[%clk 0:00:01]}
54... Ke6 {[%clk 0:00:07.3]} 0-1

[Event "Late-Titled-Tuesday-Blitz-July-09-2024"]
[Site "Chess.com"]
[Date "2024.07.09"]
[Round "5"]
[White "MatthewG-p4p"]
[Black "Hikaru"]
[Result "0-1"]
[WhiteElo "2929"]
[BlackElo "3218"]
[TimeControl "180+1"]
[EndTime "14:55:33 PDT"]
[Termination "Hikaru won by resignation"]

1. e4 {[%clk 0:03:00.9]} 1... g6 {[%clk 0:02:59.8]} 2. d4 {[%clk 0:03:00.5]}
2... c6 {[%clk 0:03:00.1]} 3. Nf3 {[%clk 0:02:54.2]} 3... d5 {[%clk 0:03:00.3]}
4. exd5 {[%clk 0:02:55]} 4... cxd5 {[%clk 0:03:00.7]} 5. h3 {[%clk 0:02:55.2]}
5... Nc6 {[%clk 0:03:00.9]} 6. Bd3 {[%clk 0:02:55.7]} 6... Bf5 {[%clk
0:03:00.1]} 7. Be2 {[%clk 0:02:50.3]} 7... Nf6 {[%clk 0:02:59.1]} 8. c3 {[%clk
0:02:49.8]} 8... Bg7 {[%clk 0:02:57.9]} 9. O-O {[%clk 0:02:50.1]} 9... O-O
{[%clk 0:02:57.8]} 10. Re1 {[%clk 0:02:50.5]} 10... a6 {[%clk 0:02:57.5]} 11.
Bf4 {[%clk 0:02:50.5]} 11... b5 {[%clk 0:02:57.7]} 12. Nbd2 {[%clk 0:02:44.8]}
12... Na5 {[%clk 0:02:56.3]} 13. a4 {[%clk 0:02:37.6]} 13... Nc4 {[%clk
0:02:56.4]} 14. axb5 {[%clk 0:02:38]} 14... axb5 {[%clk 0:02:57.3]} 15. Qb3
{[%clk 0:02:38.4]} 15... Bd7 {[%clk 0:02:48.4]} 16. Qb4 {[%clk 0:02:36.8]} 16...
Re8 {[%clk 0:02:21]} 17. b3 {[%clk 0:02:25.9]} 17... Nxd2 {[%clk 0:02:19.5]} 18.
Nxd2 {[%clk 0:02:26.8]} 18... Qb6 {[%clk 0:02:17.6]} 19. Be5 {[%clk 0:02:12.7]}
19... Bf8 {[%clk 0:02:15.5]} 20. Qc5 {[%clk 0:02:07.3]} 20... Qb7 {[%clk
0:02:13.7]} 21. Qc7 {[%clk 0:01:48.2]} 21... Qxc7 {[%clk 0:02:09.4]} 22. Bxc7
{[%clk 0:01:49.1]} 22... Rac8 {[%clk 0:02:06.8]} 23. Ra7 {[%clk 0:01:43.5]}
23... Bc6 {[%clk 0:02:02.3]} 24. Be5 {[%clk 0:01:32.9]} 24... Nd7 {[%clk
0:02:01.8]} 25. Bf4 {[%clk 0:01:29.5]} 25... e6 {[%clk 0:01:47.6]} 26. b4 {[%clk
0:01:25]} 26... Nb6 {[%clk 0:01:44.3]} 27. Nb3 {[%clk 0:01:21.4]} 27... Na4
{[%clk 0:01:44.7]} 28. Bd2 {[%clk 0:01:17.8]} 28... Ra8 {[%clk 0:01:44.2]} 29.
Rc7 {[%clk 0:01:06]} 29... Rec8 {[%clk 0:01:41.4]} 30. Rxc8 {[%clk 0:01:04.2]}
30... Rxc8 {[%clk 0:01:41.2]} 31. Ra1 {[%clk 0:01:04.4]} 31... Bd6 {[%clk
0:01:35]} 32. Nc5 {[%clk 0:01:01.4]} 32... Ra8 {[%clk 0:01:26.5]} 33. Bd1 {[%clk
0:00:44.2]} 33... e5 {[%clk 0:01:16]} 34. Bb3 {[%clk 0:00:36.8]} 34... e4 {[%clk
0:01:10.7]} 35. f3 {[%clk 0:00:34]} 35... exf3 {[%clk 0:01:05.7]} 36. gxf3
{[%clk 0:00:34.5]} 36... Kg7 {[%clk 0:01:04.6]} 37. Kf2 {[%clk 0:00:34.4]} 37...
h5 {[%clk 0:00:53.9]} 38. Ra2 {[%clk 0:00:31.5]} 38... h4 {[%clk 0:00:40.9]} 39.
Kf1 {[%clk 0:00:29.4]} 39... f6 {[%clk 0:00:35.1]} 40. Be1 {[%clk 0:00:27.3]}
40... g5 {[%clk 0:00:35.5]} 41. Re2 {[%clk 0:00:25.4]} 41... Nb6 {[%clk
0:00:32.9]} 42. Re6 {[%clk 0:00:24.9]} 42... Nc8 {[%clk 0:00:33.6]} 43. Bc2
{[%clk 0:00:21]} 43... Ra7 {[%clk 0:00:28.2]} 44. Bf5 {[%clk 0:00:19.3]} 44...
Re7 {[%clk 0:00:27.8]} 45. Re2 {[%clk 0:00:18.7]} 45... Rxe2 {[%clk 0:00:27.2]}
46. Kxe2 {[%clk 0:00:19.6]} 46... Ne7 {[%clk 0:00:27.7]} 47. Bd3 {[%clk
0:00:19.2]} 47... Kf7 {[%clk 0:00:25]} 48. Bd2 {[%clk 0:00:19.3]} 48... Ng6
{[%clk 0:00:24.8]} 49. Bxg6+ {[%clk 0:00:17.8]} 49... Kxg6 {[%clk 0:00:25]} 50.
f4 {[%clk 0:00:09.9]} 50... Bxc5 {[%clk 0:00:23.3]} 51. bxc5 {[%clk 0:00:08.4]}
51... Bd7 {[%clk 0:00:23.8]} 52. fxg5 {[%clk 0:00:04.9]} 52... fxg5 {[%clk
0:00:24.7]} 53. Kf3 {[%clk 0:00:04.1]} 53... Bxh3 {[%clk 0:00:24.9]} 54. Be1
{[%clk 0:00:04.2]} 54... Bd7 {[%clk 0:00:24.2]} 55. Ke3 {[%clk 0:00:04.7]} 55...
Kf5 {[%clk 0:00:24]} 56. Kf3 {[%clk 0:00:03]} 56... g4+ {[%clk 0:00:20.6]} 57.
Kg2 {[%clk 0:00:03.5]} 57... g3 {[%clk 0:00:21.2]} 58. Kf3 {[%clk 0:00:02.4]}
58... Be8 {[%clk 0:00:21.7]} 59. Bd2 {[%clk 0:00:02.6]} 59... Bh5+ {[%clk
0:00:22.2]} 60. Kg2 {[%clk 0:00:02.9]} 60... Kg4 {[%clk 0:00:22.7]} 61. c6
{[%clk 0:00:03.7]} 61... h3+ {[%clk 0:00:23.6]} 62. Kg1 {[%clk 0:00:04.4]} 62...
Bg6 {[%clk 0:00:24.1]} 63. c7 {[%clk 0:00:04.8]} 63... h2+ {[%clk 0:00:24.6]}
64. Kg2 {[%clk 0:00:03]} 64... Be4+ {[%clk 0:00:24.5]} 65. Kf1 {[%clk
0:00:03.9]} 65... h1=Q+ {[%clk 0:00:25.1]} 66. Ke2 {[%clk 0:00:04.7]} 66... Qf3+
{[%clk 0:00:24]} 0-1